[Event "Titled Tuesday Blitz June 28 Late 2022"]
[White "Deac, Bogdan-Daniel"]
[Black "Brodowski, Piotr"]
[WhiteFideId "1226380"]
[BlackFideId "1124480"]
[WhiteElo "2648"]
[BlackElo "2431"]
[Result "1-0"]
[Round "04"]
[TimeControl "180+1"]
[Date "2022.06.28"]
[WhiteClock "0:00:14"]
[BlackClock "0:00:06"]

1. d4 {[%clk 0:03:00]}  c5 {[%clk 0:02:56]} 2. d5 {[%clk 0:03:00]}  d6 {[%clk 0:02:56]} 3. e4 {[%clk 0:03:00]}  Nf6 {[%clk 0:02:56]} 4. Nc3 {[%clk 0:03:00]}  g6 {[%clk 0:02:56]} 5. Bb5+ {[%clk 0:03:00]}  Bd7 {[%clk 0:02:55]} 6. a4 {[%clk 0:03:01]}  Bg7 {[%clk 0:02:52]} 7. h3 {[%clk 0:03:01]}  O-O {[%clk 0:02:50]} 8. Nf3 {[%clk 0:03:01]}  Bxb5 {[%clk 0:02:50]} 9. axb5 {[%clk 0:03:01]}  Nbd7 {[%clk 0:02:51]} 10. O-O {[%clk 0:03:00]}  Nb6 {[%clk 0:02:51]} 11. Qe2 {[%clk 0:02:56]}  Ne8 {[%clk 0:02:50]} 12. Rd1 {[%clk 0:02:50]}  Nc7 {[%clk 0:02:48]} 13. Bf4 {[%clk 0:02:45]}  Qd7 {[%clk 0:02:47]} 14. e5 {[%clk 0:02:40]}  f6 {[%clk 0:02:45]} 15. e6 {[%clk 0:02:21]}  Qe8 {[%clk 0:02:42]} 16. h4 {[%clk 0:02:22]}  h6 {[%clk 0:02:39]} 17. g4 {[%clk 0:02:02]}  g5 {[%clk 0:02:33]} 18. Bg3 {[%clk 0:02:01]}  Qg6 {[%clk 0:02:26]} 19. h5 {[%clk 0:01:06]}  Qh7 {[%clk 0:02:24]} 20. Na4 {[%clk 0:00:52]}  f5 {[%clk 0:02:19]} 21. Nxb6 {[%clk 0:00:48]}  axb6 {[%clk 0:02:20]} 22. Rxa8 {[%clk 0:00:48]}  Rxa8 {[%clk 0:02:20]} 23. gxf5 {[%clk 0:00:27]}  Qxf5 {[%clk 0:02:20]} 24. c4 {[%clk 0:00:27]}  Ra2 {[%clk 0:02:16]} 25. Rd2 {[%clk 0:00:27]}  Qb1+ {[%clk 0:01:48]} 26. Kg2 {[%clk 0:00:26]}  Rxb2 {[%clk 0:01:48]} 27. Rxb2 {[%clk 0:00:26]}  Bxb2 {[%clk 0:01:49]} 28. Ne1 {[%clk 0:00:16]}  Bf6 {[%clk 0:01:42]} 29. f4 {[%clk 0:00:15]}  Qf5 {[%clk 0:01:36]} 30. Nd3 {[%clk 0:00:15]}  g4 {[%clk 0:01:34]} 31. Nf2 {[%clk 0:00:14]}  Qxh5 {[%clk 0:01:33]} 32. Nxg4 {[%clk 0:00:11]}  Qg6 {[%clk 0:01:33]} 33. f5 {[%clk 0:00:10]}  Qg7 {[%clk 0:01:31]} 34. Kh3 {[%clk 0:00:07]}  Ne8 {[%clk 0:01:26]} 35. Bf4 {[%clk 0:00:07]}  Bg5 {[%clk 0:01:26]} 36. Qe3 {[%clk 0:00:07]}  Kh7 {[%clk 0:00:47]} 37. Bxg5 {[%clk 0:00:06]}  Qxg5 {[%clk 0:00:43]} 38. Qxg5 {[%clk 0:00:06]}  hxg5 {[%clk 0:00:43]} 39. Kg3 {[%clk 0:00:05]}  Kg7 {[%clk 0:00:41]} 40. Kf3 {[%clk 0:00:05]}  Kh7 {[%clk 0:00:28]} 41. Ke4 {[%clk 0:00:04]}  Kg7 {[%clk 0:00:28]} 42. Kf3 {[%clk 0:00:04]}  Kg8 {[%clk 0:00:27]} 43. Nf2 {[%clk 0:00:04]}  Nf6 {[%clk 0:00:26]} 44. Ne4 {[%clk 0:00:03]}  Nxe4 {[%clk 0:00:23]} 45. Kxe4 {[%clk 0:00:04]}  Kg7 {[%clk 0:00:24]} 46. Kf3 {[%clk 0:00:04]}  g4+ {[%clk 0:00:02]} 47. Kxg4 {[%clk 0:00:04]}  Kf6 {[%clk 0:00:02]} 48. Kf4 {[%clk 0:00:04]}  Kg7 {[%clk 0:00:02]} 49. Kg5 {[%clk 0:00:05]}  Kf8 {[%clk 0:00:03]} 50. f6 {[%clk 0:00:06]}  Ke8 {[%clk 0:00:03]} 51. Kg6 {[%clk 0:00:06]}  Kf8 {[%clk 0:00:03]} 52. fxe7+ {[%clk 0:00:06]}  Kxe7 {[%clk 0:00:04]} 53. Kg7 {[%clk 0:00:06]}  Ke8 {[%clk 0:00:04]} 54. e7 {[%clk 0:00:07]}  Kxe7 {[%clk 0:00:04]} 55. Kg6 {[%clk 0:00:07]}  Ke8 {[%clk 0:00:02]} 56. Kf6 {[%clk 0:00:08]}  Kd7 {[%clk 0:00:03]} 57. Kf7 {[%clk 0:00:08]}  Kd8 {[%clk 0:00:03]} 58. Ke6 {[%clk 0:00:08]}  Kc7 {[%clk 0:00:04]} 59. Ke7 {[%clk 0:00:08]}  Kc8 {[%clk 0:00:04]} 60. Kxd6 {[%clk 0:00:08]}  Kd8 {[%clk 0:00:05]} 61. Ke6 {[%clk 0:00:09]}  Ke8 {[%clk 0:00:05]} 62. d6 {[%clk 0:00:09]}  Kd8 {[%clk 0:00:05]} 63. d7 {[%clk 0:00:10]}  Kc7 {[%clk 0:00:05]} 64. Ke7 {[%clk 0:00:11]}  Kb8 {[%clk 0:00:06]} 65. d8=Q+ {[%clk 0:00:11]}  Ka7 {[%clk 0:00:06]} 66. Qd6 {[%clk 0:00:12]}  Ka8 {[%clk 0:00:06]} 67. Kd7 {[%clk 0:00:13]}  Ka7 {[%clk 0:00:06]} 68. Kc8 {[%clk 0:00:13]}  Ka8 {[%clk 0:00:06]} 69. Qb8# {[%clk 0:00:14]} 1-0


[Site "https://www.chess.com"]

[Event "Titled Tuesday Blitz June 28 Late 2022"]
[White "Diaz, Fernando"]
[Black "Oye-Stromberg, Alexander"]
[WhiteFideId "3701255"]
[BlackFideId "1525999"]
[WhiteElo "1934"]
[BlackElo "1958"]
[Result "1/2-1/2"]
[Round "04"]
[TimeControl "180+1"]
[Date "2022.06.29"]
[WhiteClock "0:00:08"]
[BlackClock "0:00:13"]

1. e4 {[%clk 0:03:00]}  e5 {[%clk 0:02:59]} 2. Nf3 {[%clk 0:02:59]}  Nc6 {[%clk 0:03:00]} 3. Bc4 {[%clk 0:02:58]}  Nf6 {[%clk 0:03:00]} 4. Ng5 {[%clk 0:02:57]}  d5 {[%clk 0:03:00]} 5. exd5 {[%clk 0:02:58]}  Na5 {[%clk 0:03:00]} 6. Bb5+ {[%clk 0:02:58]}  c6 {[%clk 0:03:01]} 7. dxc6 {[%clk 0:02:59]}  bxc6 {[%clk 0:03:02]} 8. Be2 {[%clk 0:03:00]}  h6 {[%clk 0:03:00]} 9. Nf3 {[%clk 0:03:00]}  e4 {[%clk 0:03:00]} 10. Ne5 {[%clk 0:03:01]}  Bd6 {[%clk 0:03:00]} 11. d4 {[%clk 0:03:01]}  O-O {[%clk 0:02:59]} 12. O-O {[%clk 0:03:00]}  c5 {[%clk 0:02:59]} 13. c3 {[%clk 0:03:00]}  Bb7 {[%clk 0:02:58]} 14. Na3 {[%clk 0:02:48]}  Qc7 {[%clk 0:02:53]} 15. f4 {[%clk 0:02:41]}  exf3 {[%clk 0:02:50]} 16. Bxf3 {[%clk 0:02:34]}  cxd4 {[%clk 0:02:41]} 17. cxd4 {[%clk 0:02:32]}  Bxe5 {[%clk 0:02:35]} 18. dxe5 {[%clk 0:02:28]}  Qxe5 {[%clk 0:02:36]} 19. Bxb7 {[%clk 0:02:24]}  Nxb7 {[%clk 0:02:37]} 20. Bf4 {[%clk 0:02:21]}  Qxb2 {[%clk 0:02:26]} 21. Nc4 {[%clk 0:02:12]}  Qb4 {[%clk 0:02:22]} 22. Ne5 {[%clk 0:02:06]}  Rad8 {[%clk 0:02:17]} 23. Qf3 {[%clk 0:02:04]}  Nc5 {[%clk 0:02:16]} 24. Nc6 {[%clk 0:02:03]}  Qb6 {[%clk 0:02:06]} 25. Nxd8 {[%clk 0:02:00]}  Qxd8 {[%clk 0:01:57]} 26. Bxh6 {[%clk 0:01:54]}  Nfe4 {[%clk 0:01:46]} 27. Be3 {[%clk 0:01:34]}  a5 {[%clk 0:01:21]} 28. Rac1 {[%clk 0:01:25]}  Qe7 {[%clk 0:01:17]} 29. Rfe1 {[%clk 0:01:10]}  Nd3 {[%clk 0:01:15]} 30. Bf4 {[%clk 0:00:58]}  Nxe1 {[%clk 0:01:09]} 31. Rxe1 {[%clk 0:00:59]}  f5 {[%clk 0:01:08]} 32. Qb3+ {[%clk 0:00:52]}  Kh7 {[%clk 0:01:04]} 33. Qh3+ {[%clk 0:00:51]}  Kg8 {[%clk 0:01:03]} 34. Qb3+ {[%clk 0:00:51]}  Rf7 {[%clk 0:00:45]} 35. h3 {[%clk 0:00:44]}  Qc5+ {[%clk 0:00:40]} 36. Be3 {[%clk 0:00:45]}  Qe5 {[%clk 0:00:36]} 37. Rd1 {[%clk 0:00:40]}  Qe7 {[%clk 0:00:13]} 38. Bf4 {[%clk 0:00:33]}  Kh7 {[%clk 0:00:12]} 39. Qf3 {[%clk 0:00:31]}  Qe6 {[%clk 0:00:11]} 40. Qh5+ {[%clk 0:00:30]}  Kg8 {[%clk 0:00:09]} 41. Rd8+ {[%clk 0:00:31]}  Rf8 {[%clk 0:00:10]} 42. Rxf8+ {[%clk 0:00:25]}  Kxf8 {[%clk 0:00:10]} 43. Qh8+ {[%clk 0:00:25]}  Kf7 {[%clk 0:00:11]} 44. Qd8 {[%clk 0:00:21]}  Qe7 {[%clk 0:00:09]} 45. Qxa5 {[%clk 0:00:20]}  Nf6 {[%clk 0:00:08]} 46. Qxf5 {[%clk 0:00:20]}  Qe1+ {[%clk 0:00:08]} 47. Kh2 {[%clk 0:00:20]}  Qf2 {[%clk 0:00:07]} 48. Qe5 {[%clk 0:00:17]}  Qxa2 {[%clk 0:00:06]} 49. Bg3 {[%clk 0:00:16]}  Qc4 {[%clk 0:00:05]} 50. Qc7+ {[%clk 0:00:16]}  Qxc7 {[%clk 0:00:05]} 51. Bxc7 {[%clk 0:00:17]}  Nh7 {[%clk 0:00:05]} 52. Bf4 {[%clk 0:00:17]}  g6 {[%clk 0:00:05]} 53. Be3 {[%clk 0:00:17]}  Nf8 {[%clk 0:00:05]} 54. g4 {[%clk 0:00:18]}  Ne6 {[%clk 0:00:06]} 55. Kg3 {[%clk 0:00:19]}  Ng7 {[%clk 0:00:07]} 56. Kf3 {[%clk 0:00:19]}  Ne6 {[%clk 0:00:07]} 57. Ke4 {[%clk 0:00:19]}  Ng7 {[%clk 0:00:07]} 58. Bd4 {[%clk 0:00:20]}  Ne6 {[%clk 0:00:08]} 59. Be5 {[%clk 0:00:20]}  Nf8 {[%clk 0:00:08]} 60. h4 {[%clk 0:00:20]}  Ne6 {[%clk 0:00:09]} 61. Kd5 {[%clk 0:00:17]}  Nd8 {[%clk 0:00:08]} 62. Ke4 {[%clk 0:00:15]}  Ne6 {[%clk 0:00:09]} 63. Kf3 {[%clk 0:00:15]}  Nc5 {[%clk 0:00:08]} 64. Kf4 {[%clk 0:00:15]}  Ne6+ {[%clk 0:00:09]} 65. Ke4 {[%clk 0:00:15]}  Nc5+ {[%clk 0:00:09]} 66. Kd5 {[%clk 0:00:16]}  Ne6 {[%clk 0:00:10]} 67. Bg3 {[%clk 0:00:16]}  Nf8 {[%clk 0:00:09]} 68. Ke5 {[%clk 0:00:16]}  Nh7 {[%clk 0:00:10]} 69. Kf4 {[%clk 0:00:16]}  Nf6 {[%clk 0:00:10]} 70. Kg5 {[%clk 0:00:14]}  Ne4+ {[%clk 0:00:10]} 71. Kf4 {[%clk 0:00:14]}  Nf6 {[%clk 0:00:10]} 72. Kf3 {[%clk 0:00:14]}  Nd5 {[%clk 0:00:10]} 73. Be5 {[%clk 0:00:14]}  Ne7 {[%clk 0:00:10]} 74. Kf4 {[%clk 0:00:14]}  Ng8 {[%clk 0:00:11]} 75. Kg5 {[%clk 0:00:14]}  Ne7 {[%clk 0:00:11]} 76. h5 {[%clk 0:00:13]}  gxh5 {[%clk 0:00:11]} 77. gxh5 {[%clk 0:00:14]}  Kg8 {[%clk 0:00:11]} 78. Bf6 {[%clk 0:00:13]}  Nd5 {[%clk 0:00:11]} 79. Be5 {[%clk 0:00:12]}  Kh7 {[%clk 0:00:12]} 80. Bd4 {[%clk 0:00:09]}  Ne7 {[%clk 0:00:12]} 81. Be5 {[%clk 0:00:09]}  Ng8 {[%clk 0:00:12]} 82. Bd4 {[%clk 0:00:09]}  Nh6 {[%clk 0:00:13]} 83. Bc5 {[%clk 0:00:09]}  Nf7+ {[%clk 0:00:13]} 84. Kf6 {[%clk 0:00:08]} 1/2-1/2


[Site "https://www.chess.com"]

[Event "Titled Tuesday Blitz June 28 Late 2022"]
[White "Domingo Nunez, Ruben"]
[Black "Howell, David W L"]
[WhiteFideId "22245570"]
[BlackFideId "410608"]
[WhiteElo "2376"]
[BlackElo "2559"]
[Result "0-1"]
[Round "04"]
[TimeControl "180+1"]
[Date "2022.06.28"]
[WhiteClock "0:00:10"]
[BlackClock "0:00:09"]

1. c4 {[%clk 0:03:00]}  Na6 {[%clk 0:02:38]} 2. Nc3 {[%clk 0:03:00]}  e5 {[%clk 0:02:33]} 3. g3 {[%clk 0:03:00]}  Bb4 {[%clk 0:02:32]} 4. Nd5 {[%clk 0:03:00]}  Nf6 {[%clk 0:02:32]} 5. Nxf6+ {[%clk 0:02:53]}  Qxf6 {[%clk 0:02:32]} 6. a3 {[%clk 0:02:53]}  Bc5 {[%clk 0:02:30]} 7. e3 {[%clk 0:02:54]}  Qc6 {[%clk 0:02:07]} 8. Nf3 {[%clk 0:02:48]}  e4 {[%clk 0:02:06]} 9. Ne5 {[%clk 0:02:38]}  Qe6 {[%clk 0:01:36]} 10. d4 {[%clk 0:02:32]}  exd3 {[%clk 0:01:37]} 11. Nxd3 {[%clk 0:02:31]}  Qxc4 {[%clk 0:01:34]} 12. b4 {[%clk 0:02:18]}  Be7 {[%clk 0:01:25]} 13. Bb2 {[%clk 0:02:16]}  O-O {[%clk 0:01:19]} 14. Nf4 {[%clk 0:01:58]}  Qc6 {[%clk 0:01:18]} 15. Bg2 {[%clk 0:01:58]}  Qb5 {[%clk 0:01:18]} 16. Nd5 {[%clk 0:01:55]}  Re8 {[%clk 0:01:01]} 17. Qd4 {[%clk 0:01:08]}  Bf8 {[%clk 0:00:56]} 18. Nf6+ {[%clk 0:01:00]}  Kh8 {[%clk 0:00:37]} 19. Nxe8 {[%clk 0:01:00]}  c5 {[%clk 0:00:38]} 20. bxc5 {[%clk 0:00:57]}  Nxc5 {[%clk 0:00:33]} 21. Rd1 {[%clk 0:00:36]}  Ne6 {[%clk 0:00:31]} 22. Qe5 {[%clk 0:00:29]}  d5 {[%clk 0:00:29]} 23. Bxd5 {[%clk 0:00:26]}  Qxe8 {[%clk 0:00:25]} 24. O-O {[%clk 0:00:24]}  f6 {[%clk 0:00:18]} 25. Qe4 {[%clk 0:00:22]}  Bd7 {[%clk 0:00:18]} 26. Bxb7 {[%clk 0:00:22]}  Rb8 {[%clk 0:00:18]} 27. Ba1 {[%clk 0:00:19]}  Rxb7 {[%clk 0:00:16]} 28. Qxb7 {[%clk 0:00:19]}  Bc6 {[%clk 0:00:17]} 29. Qb3 {[%clk 0:00:15]}  Ng5 {[%clk 0:00:17]} 30. e4 {[%clk 0:00:10]}  Qxe4 {[%clk 0:00:15]} 31. f3 {[%clk 0:00:10]}  Qe2 {[%clk 0:00:11]} 32. Qd3 {[%clk 0:00:06]}  Bxf3 {[%clk 0:00:07]} 33. Qxe2 {[%clk 0:00:06]}  Bxe2 {[%clk 0:00:07]} 34. Rd8 {[%clk 0:00:07]}  Kg8 {[%clk 0:00:05]} 35. Re1 {[%clk 0:00:07]}  Nf3+ {[%clk 0:00:04]} 36. Kf2 {[%clk 0:00:07]}  Nxe1 {[%clk 0:00:05]} 37. Kxe2 {[%clk 0:00:07]}  Nc2 {[%clk 0:00:04]} 38. Bb2 {[%clk 0:00:08]}  Kf7 {[%clk 0:00:03]} 39. Rxf8+ {[%clk 0:00:07]}  Kxf8 {[%clk 0:00:03]} 40. Kd2 {[%clk 0:00:08]}  Nxa3 {[%clk 0:00:03]} 41. Bxa3+ {[%clk 0:00:09]}  Kf7 {[%clk 0:00:04]} 42. Kd3 {[%clk 0:00:09]}  Ke6 {[%clk 0:00:05]} 43. Ke4 {[%clk 0:00:10]}  a5 {[%clk 0:00:03]} 44. g4 {[%clk 0:00:07]}  a4 {[%clk 0:00:04]} 45. Kf4 {[%clk 0:00:07]}  Kd5 {[%clk 0:00:03]} 46. Bf8 {[%clk 0:00:07]}  g6 {[%clk 0:00:02]} 47. Bg7 {[%clk 0:00:08]}  Ke6 {[%clk 0:00:03]} 48. h4 {[%clk 0:00:08]}  a3 {[%clk 0:00:03]} 49. g5 {[%clk 0:00:09]}  f5 {[%clk 0:00:03]} 50. Bf6 {[%clk 0:00:08]}  Kd5 {[%clk 0:00:03]} 51. h5 {[%clk 0:00:07]}  Kc4 {[%clk 0:00:03]} 52. h6 {[%clk 0:00:07]}  a2 {[%clk 0:00:03]} 53. Ba1 {[%clk 0:00:06]}  Kd3 {[%clk 0:00:03]} 54. Ke5 {[%clk 0:00:07]}  Ke3 {[%clk 0:00:03]} 55. Kf6 {[%clk 0:00:07]}  f4 {[%clk 0:00:04]} 56. Kg7 {[%clk 0:00:08]}  f3 {[%clk 0:00:05]} 57. Kxh7 {[%clk 0:00:08]}  f2 {[%clk 0:00:06]} 58. Kg7 {[%clk 0:00:08]}  f1=Q {[%clk 0:00:07]} 59. h7 {[%clk 0:00:09]}  Qxa1+ {[%clk 0:00:07]} 60. Kg8 {[%clk 0:00:09]}  Qe5 {[%clk 0:00:07]} 61. h8=Q {[%clk 0:00:09]}  Qxh8+ {[%clk 0:00:07]} 62. Kxh8 {[%clk 0:00:10]}  a1=Q+ {[%clk 0:00:08]} 63. Kh7 {[%clk 0:00:10]}  Qb1 {[%clk 0:00:09]} 64. Kh6 {[%clk 0:00:10]}  Kf4 {[%clk 0:00:09]} 0-1


[Site "https://www.chess.com"]

[Event "Titled Tuesday Blitz June 28 Late 2022"]
[White "Donatti, Alvaro"]
[Black "Chen, Max"]
[WhiteFideId "3000303"]
[BlackFideId "2622440"]
[WhiteElo "2138"]
[BlackElo "2401"]
[Result "0-1"]
[Round "04"]
[TimeControl "180+1"]
[Date "2022.06.29"]
[WhiteClock "0:00:01"]
[BlackClock "0:00:14"]

1. e4 {[%clk 0:03:00]}  c5 {[%clk 0:02:59]} 2. Nf3 {[%clk 0:03:00]}  d6 {[%clk 0:02:58]} 3. d4 {[%clk 0:02:59]}  cxd4 {[%clk 0:02:59]} 4. Nxd4 {[%clk 0:02:59]}  Nf6 {[%clk 0:03:00]} 5. Nc3 {[%clk 0:02:59]}  a6 {[%clk 0:03:00]} 6. Be3 {[%clk 0:02:58]}  e5 {[%clk 0:02:55]} 7. Nb3 {[%clk 0:02:57]}  Be6 {[%clk 0:02:55]} 8. Be2 {[%clk 0:02:53]}  Be7 {[%clk 0:02:54]} 9. O-O {[%clk 0:02:53]}  O-O {[%clk 0:02:53]} 10. f4 {[%clk 0:02:52]}  exf4 {[%clk 0:02:42]} 11. Bxf4 {[%clk 0:02:51]}  Nc6 {[%clk 0:02:42]} 12. Nd5 {[%clk 0:02:43]}  Bxd5 {[%clk 0:02:37]} 13. exd5 {[%clk 0:02:42]}  Ne5 {[%clk 0:02:38]} 14. Kh1 {[%clk 0:02:30]}  Ng6 {[%clk 0:02:29]} 15. Bg3 {[%clk 0:02:20]}  Ne4 {[%clk 0:02:18]} 16. Be1 {[%clk 0:02:17]}  Bf6 {[%clk 0:02:18]} 17. Nd4 {[%clk 0:02:13]}  Qb6 {[%clk 0:02:08]} 18. Nf5 {[%clk 0:02:10]}  Qxb2 {[%clk 0:01:53]} 19. Rb1 {[%clk 0:02:01]}  Qe5 {[%clk 0:01:39]} 20. Rxb7 {[%clk 0:01:38]}  Nf4 {[%clk 0:01:32]} 21. Bd3 {[%clk 0:01:11]}  Nc5 {[%clk 0:01:13]} 22. Bg3 {[%clk 0:00:28]}  Ncxd3 {[%clk 0:00:35]} 23. cxd3 {[%clk 0:00:24]}  Qxf5 {[%clk 0:00:35]} 24. Rxf4 {[%clk 0:00:20]}  Qxd5 {[%clk 0:00:35]} 25. Rb1 {[%clk 0:00:18]}  Rab8 {[%clk 0:00:33]} 26. Rxb8 {[%clk 0:00:12]}  Rxb8 {[%clk 0:00:34]} 27. Re4 {[%clk 0:00:10]}  Be5 {[%clk 0:00:32]} 28. Qe1 {[%clk 0:00:08]}  f6 {[%clk 0:00:31]} 29. d4 {[%clk 0:00:04]}  Qxa2 {[%clk 0:00:15]} 30. dxe5 {[%clk 0:00:02]}  Rb1 {[%clk 0:00:15]} 31. exd6 {[%clk 0:00:01]}  Rxe1+ {[%clk 0:00:14]} 32. Rxe1 {[%clk 0:00:01]}  Qd5 {[%clk 0:00:14]} 0-1


[Site "https://www.chess.com"]

[Event "Titled Tuesday Blitz June 28 Late 2022"]
[White "Gardezi, Arsal"]
[Black "Carrasco Miranda, Andres"]
[WhiteFideId "30949521"]
[BlackFideId "3405990"]
[WhiteElo "1781"]
[BlackElo "2177"]
[Result "1-0"]
[Round "04"]
[TimeControl "180+1"]
[Date "2022.06.29"]
[WhiteClock "0:00:44"]
[BlackClock "0:00:05"]

1. e4 {[%clk 0:03:00]}  c5 {[%clk 0:02:57]} 2. Nf3 {[%clk 0:03:00]}  d6 {[%clk 0:02:57]} 3. d4 {[%clk 0:02:57]}  cxd4 {[%clk 0:02:58]} 4. Nxd4 {[%clk 0:02:56]}  Nf6 {[%clk 0:02:58]} 5. Nc3 {[%clk 0:02:53]}  a6 {[%clk 0:02:58]} 6. f3 {[%clk 0:02:53]}  e5 {[%clk 0:02:57]} 7. Nb3 {[%clk 0:02:53]}  Be6 {[%clk 0:02:57]} 8. Be3 {[%clk 0:02:53]}  h5 {[%clk 0:02:57]} 9. Nd5 {[%clk 0:02:52]}  Bxd5 {[%clk 0:02:56]} 10. exd5 {[%clk 0:02:53]}  Nbd7 {[%clk 0:02:57]} 11. c4 {[%clk 0:02:49]}  Rc8 {[%clk 0:02:56]} 12. Qd2 {[%clk 0:02:48]}  g6 {[%clk 0:02:56]} 13. Rc1 {[%clk 0:02:42]}  Bg7 {[%clk 0:02:56]} 14. Na5 {[%clk 0:02:41]}  Qc7 {[%clk 0:02:55]} 15. Be2 {[%clk 0:02:41]}  O-O {[%clk 0:02:54]} 16. O-O {[%clk 0:02:42]}  e4 {[%clk 0:02:55]} 17. f4 {[%clk 0:02:41]}  Ng4 {[%clk 0:02:46]} 18. Bxg4 {[%clk 0:02:41]}  hxg4 {[%clk 0:02:47]} 19. b4 {[%clk 0:02:38]}  f5 {[%clk 0:02:39]} 20. c5 {[%clk 0:02:16]}  dxc5 {[%clk 0:01:13]} 21. d6 {[%clk 0:01:54]}  Qb8 {[%clk 0:00:53]} 22. bxc5 {[%clk 0:01:53]}  b6 {[%clk 0:00:49]} 23. Nc6 {[%clk 0:01:53]}  Rxc6 {[%clk 0:00:49]} 24. Qd5+ {[%clk 0:01:53]}  Kh7 {[%clk 0:00:48]} 25. Qxc6 {[%clk 0:01:53]}  Nxc5 {[%clk 0:00:48]} 26. Bxc5 {[%clk 0:01:42]}  bxc5 {[%clk 0:00:48]} 27. Rb1 {[%clk 0:01:40]}  Bd4+ {[%clk 0:00:37]} 28. Kh1 {[%clk 0:01:39]}  Qd8 {[%clk 0:00:32]} 29. Rb7+ {[%clk 0:01:33]}  Kh6 {[%clk 0:00:32]} 30. d7 {[%clk 0:01:23]}  e3 {[%clk 0:00:30]} 31. Qe6 {[%clk 0:01:08]}  Qh4 {[%clk 0:00:20]} 32. Rb6 {[%clk 0:00:54]}  Rf6 {[%clk 0:00:18]} 33. d8=Q {[%clk 0:00:45]}  c4 {[%clk 0:00:05]} 34. Qh8# {[%clk 0:00:44]} 1-0


[Site "https://www.chess.com"]

[Event "Titled Tuesday Blitz June 28 Late 2022"]
[White "Glavina, Pablo"]
[Black "Przybylski, Wojciech"]
[WhiteFideId "100234"]
[BlackFideId "1117599"]
[WhiteElo "2369"]
[BlackElo "2133"]
[Result "0-1"]
[Round "04"]
[TimeControl "180+1"]
[Date "2022.06.29"]
[WhiteClock "0:00:02"]
[BlackClock "0:00:02"]

1. e4 {[%clk 0:02:56]}  e5 {[%clk 0:02:46]} 2. Nf3 {[%clk 0:02:54]}  Nc6 {[%clk 0:02:10]} 3. Bc4 {[%clk 0:02:53]}  Nf6 {[%clk 0:01:56]} 4. d4 {[%clk 0:02:52]}  exd4 {[%clk 0:01:53]} 5. e5 {[%clk 0:02:51]}  d5 {[%clk 0:01:53]} 6. Bb5 {[%clk 0:02:50]}  Nd7 {[%clk 0:01:54]} 7. O-O {[%clk 0:02:42]}  Be7 {[%clk 0:01:51]} 8. Bxc6 {[%clk 0:02:41]}  bxc6 {[%clk 0:01:51]} 9. Nxd4 {[%clk 0:02:42]}  Nb8 {[%clk 0:01:51]} 10. f4 {[%clk 0:02:32]}  c5 {[%clk 0:01:50]} 11. Nb3 {[%clk 0:02:24]}  O-O {[%clk 0:01:46]} 12. Be3 {[%clk 0:02:19]}  d4 {[%clk 0:01:46]} 13. Qf3 {[%clk 0:02:11]}  c6 {[%clk 0:01:36]} 14. Bf2 {[%clk 0:02:08]}  Qd5 {[%clk 0:01:34]} 15. N1d2 {[%clk 0:02:01]}  Bf5 {[%clk 0:01:27]} 16. c3 {[%clk 0:01:56]}  dxc3 {[%clk 0:01:12]} 17. bxc3 {[%clk 0:01:54]}  Nd7 {[%clk 0:01:12]} 18. c4 {[%clk 0:01:44]}  Qxf3 {[%clk 0:01:06]} 19. Nxf3 {[%clk 0:01:45]}  Be6 {[%clk 0:01:06]} 20. Na5 {[%clk 0:01:42]}  Rac8 {[%clk 0:01:02]} 21. Rab1 {[%clk 0:01:38]}  Nb6 {[%clk 0:01:01]} 22. Nd2 {[%clk 0:01:33]}  f6 {[%clk 0:01:00]} 23. Rfe1 {[%clk 0:01:29]}  Bf5 {[%clk 0:00:58]} 24. Rb3 {[%clk 0:01:25]}  fxe5 {[%clk 0:00:57]} 25. fxe5 {[%clk 0:01:23]}  Rfd8 {[%clk 0:00:43]} 26. Nf3 {[%clk 0:01:15]}  Be6 {[%clk 0:00:39]} 27. Rc3 {[%clk 0:01:13]}  Rc7 {[%clk 0:00:28]} 28. h3 {[%clk 0:01:11]}  h6 {[%clk 0:00:23]} 29. Rec1 {[%clk 0:01:00]}  Rf8 {[%clk 0:00:21]} 30. Rd3 {[%clk 0:00:52]}  Rf4 {[%clk 0:00:20]} 31. Be3 {[%clk 0:00:48]}  Re4 {[%clk 0:00:16]} 32. Nd2 {[%clk 0:00:42]}  Rh4 {[%clk 0:00:12]} 33. Bf2 {[%clk 0:00:38]}  Rh5 {[%clk 0:00:11]} 34. Nf3 {[%clk 0:00:36]}  Rf5 {[%clk 0:00:10]} 35. Nb3 {[%clk 0:00:34]}  Bxc4 {[%clk 0:00:08]} 36. Rdc3 {[%clk 0:00:31]}  Bd5 {[%clk 0:00:08]} 37. Bxc5 {[%clk 0:00:28]}  Bxf3 {[%clk 0:00:05]} 38. Rxf3 {[%clk 0:00:19]}  Rxe5 {[%clk 0:00:05]} 39. Bf2 {[%clk 0:00:16]}  Re6 {[%clk 0:00:04]} 40. Nd4 {[%clk 0:00:15]}  Rg6 {[%clk 0:00:04]} 41. Nf5 {[%clk 0:00:10]}  Bf8 {[%clk 0:00:03]} 42. Bc5 {[%clk 0:00:07]}  Rf7 {[%clk 0:00:03]} 43. Bxf8 {[%clk 0:00:04]}  Kxf8 {[%clk 0:00:03]} 44. Rd1 {[%clk 0:00:02]}  Kg8 {[%clk 0:00:02]} 0-1


[Site "https://www.chess.com"]

[Event "Titled Tuesday Blitz June 28 Late 2022"]
[White "Gokerkan, Cem Kaan"]
[Black "Bobadilla Viera, Jorge Samuel"]
[WhiteFideId "6336760"]
[BlackFideId "3906353"]
[WhiteElo "2382"]
[BlackElo "2202"]
[Result "1-0"]
[Round "04"]
[TimeControl "180+1"]
[Date "2022.06.28"]
[WhiteClock "0:00:39"]
[BlackClock "0:01:32"]

1. e4 {[%clk 0:03:00]}  c5 {[%clk 0:02:58]} 2. Nf3 {[%clk 0:03:00]}  d6 {[%clk 0:02:58]} 3. d4 {[%clk 0:03:00]}  cxd4 {[%clk 0:02:59]} 4. Nxd4 {[%clk 0:03:01]}  Nf6 {[%clk 0:02:59]} 5. Nc3 {[%clk 0:03:01]}  a6 {[%clk 0:02:59]} 6. Rg1 {[%clk 0:02:59]}  g6 {[%clk 0:02:57]} 7. g4 {[%clk 0:02:59]}  Bg7 {[%clk 0:02:58]} 8. g5 {[%clk 0:02:59]}  Nfd7 {[%clk 0:02:57]} 9. Be3 {[%clk 0:02:56]}  b5 {[%clk 0:02:56]} 10. h4 {[%clk 0:02:55]}  Bb7 {[%clk 0:02:56]} 11. h5 {[%clk 0:02:54]}  Nb6 {[%clk 0:02:45]} 12. h6 {[%clk 0:02:50]}  Bf8 {[%clk 0:02:45]} 13. f3 {[%clk 0:02:45]}  N8d7 {[%clk 0:02:44]} 14. a3 {[%clk 0:02:40]}  Rc8 {[%clk 0:02:43]} 15. Qd2 {[%clk 0:02:37]}  Ne5 {[%clk 0:02:42]} 16. O-O-O {[%clk 0:02:15]}  Nec4 {[%clk 0:02:37]} 17. Bxc4 {[%clk 0:02:15]}  Nxc4 {[%clk 0:02:37]} 18. Qd3 {[%clk 0:02:15]}  e6 {[%clk 0:02:29]} 19. f4 {[%clk 0:02:11]}  Be7 {[%clk 0:02:27]} 20. f5 {[%clk 0:02:07]}  Qd7 {[%clk 0:02:14]} 21. fxg6 {[%clk 0:01:13]}  fxg6 {[%clk 0:02:12]} 22. Rdf1 {[%clk 0:01:08]}  Rf8 {[%clk 0:02:06]} 23. Nde2 {[%clk 0:00:51]}  Ne5 {[%clk 0:02:00]} 24. Qd1 {[%clk 0:00:50]}  Nc4 {[%clk 0:01:53]} 25. Bd4 {[%clk 0:00:42]}  Rxf1 {[%clk 0:01:44]} 26. Qxf1 {[%clk 0:00:40]}  e5 {[%clk 0:01:40]} 27. Bf2 {[%clk 0:00:40]}  Qh3 {[%clk 0:01:32]} 28. Qxh3 {[%clk 0:00:39]} 1-0


[Site "https://www.chess.com"]